fUSD/lending_fUSD_20240104
["ID","MTS","AMOUNT","RATE_DAILY","PERIOD"]
[310196463,1704397851521,-500.0,0.0003315,2]
[310196464,1704397851531,-500.0,0.0003315,2]
[310196465,1704397851541,-500.0,0.0003315,2]
[310196466,1704397851551,-500.0,0.0003315,2]
[310196467,1704397851562,-500.0,0.0003315,2]
[310196468,1704397851573,-500.0,0.0003315,2]
[310196469,1704397851584,-500.0,0.0003315,2]
[310196470,1704397851594,-500.0,0.0003315,2]
[310196471,1704397851605,-500.0,0.0003315,2]
[310196472,1704397851615,-263.28,0.0003315,2]
[310196473,1704397851626,-500.0,0.0003315,2]
[310196474,1704397851637,-500.0,0.0003315,2]
[310196475,1704397851648,-500.0,0.0003315,2]
[310196476,1704397851659,-500.0,0.0003315,2]
[310196477,1704397851670,-500.0,0.0003315,2]
[310196478,1704397851681,-500.0,0.0003315,2]
[310196479,1704397851693,-500.0,0.0003315,2]
[310196480,1704397851705,-500.0,0.0003315,2]
[310196481,1704397851717,-500.0,0.0003315,2]
[310196482,1704397851728,-500.0,0.0003315,2]
[310196483,1704397851739,-270.35409972,0.0003315,2]
[310196484,1704397851750,-525.07251943,0.0003315,2]
[310196485,1704397851761,-500.0,0.0003315,2]
[310196486,1704397851771,-500.0,0.0003315,2]
[310196487,1704397851784,-500.0,0.0003315,2]
[310196488,1704397851795,-500.0,0.0003315,2]
[310196489,1704397851807,-500.0,0.0003315,2]
[310196490,1704397851819,-500.0,0.0003315,2]
[310196491,1704397851831,-500.0,0.0003315,2]
[310196492,1704397851842,-500.0,0.0003315,2]
[310196493,1704397851854,-500.0,0.0003315,2]
[310196494,1704397851866,-500.0,0.0003315,2]
[310196495,1704397851880,-489.93400942,0.0003315,2]
[310196496,1704397851891,-500.0,0.0003315,2]
[310196497,1704397851903,-500.0,0.0003315,2]
[310196498,1704397851915,-500.0,0.0003315,2]
[310196499,1704397851925,-500.0,0.0003315,2]
[310196500,1704397851935,-500.0,0.0003315,2]
[310196501,1704397851945,-500.0,0.0003315,2]
[310196502,1704397851956,-500.0,0.0003315,2]
[310196503,1704397851967,-500.0,0.0003315,2]
[310196504,1704397851977,-500.0,0.0003315,2]
[310196505,1704397851987,-500.0,0.0003315,2]
[310196506,1704397851999,-500.0,0.0003315,2]
[310196507,1704397852009,-500.0,0.0003315,2]
[310196508,1704397852021,-500.0,0.0003315,2]
[310196509,1704397852032,-500.0,0.0003315,2]
[310196510,1704397852042,-500.0,0.0003315,2]
[310196511,1704397852053,-500.0,0.0003315,2]
[310196512,1704397852064,-500.0,0.0003315,2]
[310196513,1704397852073,-500.0,0.0003315,2]
[310196514,1704397852083,-500.0,0.0003315,2]
[310196515,1704397852094,-577.22714019,0.0003315,2]
[310196516,1704397852106,-500.0,0.0003315,2]
[310196517,1704397852115,-500.0,0.0003315,2]
[310196518,1704397852125,-500.0,0.0003315,2]
[310196519,1704397852136,-500.0,0.0003315,2]
[310196520,1704397852146,-500.0,0.0003315,2]
[310196521,1704397852156,-500.0,0.0003315,2]
[310196522,1704397852168,-500.0,0.0003315,2]
[310196523,1704397852178,-500.0,0.0003315,2]
[310196524,1704397852188,-500.0,0.0003315,2]
[310196525,1704397852197,-500.0,0.0003315,2]
[310196526,1704397852207,-500.0,0.0003315,2]
[310196527,1704397852217,-614.6821143,0.0003315,2]
[310196528,1704397852227,-500.0,0.0003315,2]
[310196529,1704397852237,-500.0,0.0003315,2]
[310196530,1704397852246,-500.0,0.0003315,2]
[310196531,1704397852255,-500.0,0.0003315,2]
[310196532,1704397852265,-500.0,0.0003315,2]
[310196533,1704397852274,-500.0,0.0003315,2]
[310196534,1704397852284,-500.0,0.0003315,2]
[310196535,1704397852294,-500.0,0.0003315,2]
[310196536,1704397852306,-865.01,0.0003315,2]
[310196537,1704397852316,-500.0,0.0003315,2]
[310196538,1704397852326,-500.0,0.0003315,2]
[310196539,1704397852336,-500.0,0.0003315,2]
[310196540,1704397852347,-500.0,0.0003315,2]
[310196541,1704397852358,-500.0,0.0003315,2]
[310196542,1704397852368,-500.0,0.0003315,2]
[310196543,1704397852378,-583.33,0.0003315,2]
[310196544,1704397852388,-500.0,0.0003315,2]
[310196545,1704397852398,-500.0,0.0003315,2]
[310196546,1704397852407,-500.0,0.0003315,2]
[310196547,1704397852420,-500.0,0.0003315,2]
[310196548,1704397852430,-500.0,0.0003315,2]
[310196549,1704397852439,-1284.32,0.0003315,2]
[310196550,1704397852449,-500.0,0.0003315,2]
[310196551,1704397852460,-579.64,0.0003315,2]
[310196552,1704397852470,-500.0,0.0003315,2]
[310196553,1704397852481,-500.0,0.0003315,2]
[310196554,1704397852490,-583.9,0.0003315,2]
[310196555,1704397852500,-500.0,0.0003315,2]
[310196556,1704397852510,-500.0,0.0003315,2]
[310196557,1704397852519,-500.0,0.0003315,2]
[310196558,1704397852530,-500.0,0.0003315,2]
[310196559,1704397852540,-500.0,0.0003315,2]
[310196560,1704397852550,-1058.09,0.0003315,2]
[310196561,1704397852560,-500.0,0.0003315,2]
[310196562,1704397852570,-500.0,0.0003315,2]
[310196563,1704397852580,-500.0,0.0003315,2]
[310196564,1704397852590,-500.0,0.0003315,2]
[310196565,1704397852600,-500.0,0.0003315,2]
[310196566,1704397852610,-500.0,0.0003315,2]
[310196567,1704397852619,-206.36650585,0.0003315,2]
[310196568,1704397852629,-543.63,0.0003315,2]
[310196569,1704397852639,-500.0,0.0003315,2]
[310196570,1704397852649,-500.0,0.0003315,2]
[310196571,1704397852659,-500.0,0.0003315,2]
[310196572,1704397852670,-500.0,0.0003315,2]
[310196573,1704397852679,-500.0,0.0003315,2]
[310196574,1704397852690,-1700.97,0.0003315,2]
[310196575,1704397852701,-500.0,0.0003315,2]
[310196576,1704397852711,-500.0,0.0003315,2]
[310196577,1704397852721,-500.0,0.0003315,2]
[310196578,1704397852731,-863.75,0.0003315,2]
[310196579,1704397852742,-731.04,0.0003315,2]
[310196580,1704397852752,-500.0,0.0003315,2]
[310196581,1704397852762,-500.0,0.0003315,2]
[310196582,1704397852773,-500.0,0.0003315,2]
[310196583,1704397852784,-500.0,0.0003315,2]
[310196584,1704397852795,-378.36,0.0003315,2]
[310196585,1704397852805,-580.4,0.0003315,2]
[310196586,1704397852815,-410.49325823,0.0003315,2]
[310196587,1704397852826,-430.28325667,0.0003315,2]
[310196588,1704397852838,-500.0,0.0003315,2]
[310196589,1704397852849,-500.0,0.0003315,2]
[310196590,1704397852860,-631.49544777,0.0003315,2]
[310196591,1704397852872,-500.0,0.0003315,2]
[310196592,1704397852884,-500.0,0.0003315,2]
[310196593,1704397852897,-500.0,0.0003315,2]
[310196594,1704397852909,-500.0,0.0003315,2]
[310196595,1704397852921,-500.0,0.0003315,2]
[310196596,1704397852933,-500.0,0.0003315,2]
[310196597,1704397852944,-500.0,0.0003315,2]
[310196598,1704397852954,-491.28298553,0.0003315,2]
[310196599,1704397852965,-500.0,0.0003315,2]
[310196600,1704397852976,-529.73358759,0.0003315,2]
[310196601,1704397852987,-500.0,0.0003315,2]
[310196602,1704397852997,-500.0,0.0003315,2]
[310196603,1704397853009,-578.78604279,0.0003315,2]
[310196604,1704397853020,-500.0,0.0003315,2]
[310196605,1704397853032,-500.0,0.0003315,2]
[310196606,1704397853043,-500.0,0.0003315,2]
[310196607,1704397853054,-6526.71,0.0003315,2]
[310196608,1704397853064,-500.0,0.0003315,2]
[310196609,1704397853075,-500.0,0.0003315,2]
[310196610,1704397853086,-2294.31,0.0003315,2]
[310196611,1704397853097,-500.0,0.0003315,2]
[310196612,1704397853110,-500.0,0.0003315,2]
[310196613,1704397853121,-500.0,0.0003315,2]
[310196614,1704397853133,-225.67,0.0003315,2]
[310196615,1704397853144,-722.55,0.0003315,2]
[310196616,1704397853155,-500.0,0.0003315,2]
[310196617,1704397853166,-500.0,0.0003315,2]
[310196618,1704397853177,-500.0,0.0003315,2]
[310196619,1704397853189,-500.0,0.0003315,2]
[310196620,1704397853201,-921.24,0.0003315,2]
[310196621,1704397853212,-500.0,0.0003315,2]
[310196622,1704397853223,-1691.72,0.0003315,2]
[310196623,1704397853235,-500.0,0.0003315,2]
[310196624,1704397853246,-589.58,0.0003315,2]
[310196625,1704397853258,-1289.87,0.0003315,2]
[310196626,1704397853452,-500.0,0.0003315,2]
[310196627,1704397853462,-500.0,0.0003315,2]
[310196628,1704397853472,-500.0,0.0003315,2]
[310196629,1704397853481,-500.0,0.0003315,2]
[310196630,1704397853491,-500.0,0.0003315,2]
[310196631,1704397853501,-500.0,0.0003315,2]
[310196632,1704397853511,-500.0,0.0003315,2]
[310196633,1704397853521,-513.6129249,0.0003315,2]
[310196634,1704397853531,-3756.74,0.0003315,2]
[310196635,1704397853541,-1426.77,0.0003315,2]
[310196636,1704397853551,-500.0,0.0003315,2]
[310196637,1704397853561,-500.0,0.0003315,2]
[310196638,1704397853571,-598.43,0.0003315,2]
[310196639,1704397853581,-500.0,0.0003315,2]
[310196640,1704397853591,-500.0,0.0003315,2]
[310196641,1704397853601,-500.0,0.0003315,2]
[310196642,1704397853610,-500.0,0.0003315,2]
[310196643,1704397853620,-1080.46,0.0003315,2]
[310196644,1704397853630,-2739.45,0.0003315,2]
[310196645,1704397853639,-500.0,0.0003315,2]
[310196646,1704397853648,-500.0,0.0003315,2]
[310196647,1704397853658,-500.0,0.0003315,2]
[310196648,1704397853671,-560.81646736,0.0003315,2]
[310196649,1704397853680,-500.0,0.0003315,2]
[310196650,1704397853691,-500.0,0.0003315,2]
[310196651,1704397853700,-500.0,0.0003315,2]
[310196652,1704397853710,-500.0,0.0003315,2]
[310196653,1704397853721,-968.76,0.0003315,2]
[310196654,1704397853730,-1542.0,0.0003315,2]
[310196655,1704397853740,-500.0,0.0003315,2]
[310196656,1704397853749,-1230.11,0.0003315,2]
[310196657,1704397853759,-500.0,0.0003315,2]
[310196658,1704397853768,-500.0,0.0003315,2]
[310196659,1704397853777,-500.0,0.0003315,2]
[310196660,1704397853786,-500.0,0.0003315,2]
[310196661,1704397853796,-500.0,0.0003315,2]
[310196662,1704397853806,-500.0,0.0003315,2]
[310196663,1704397853815,-500.0,0.0003315,2]
[310196664,1704397853825,-500.0,0.0003315,2]
[310196665,1704397853834,-500.0,0.0003315,2]
[310196666,1704397853844,-300.0,0.0003315,2]
[310196667,1704397853853,-500.0,0.0003315,2]
[310196668,1704397853863,-500.0,0.0003315,2]
[310196669,1704397853873,-500.0,0.0003315,2]
[310196670,1704397853882,-166.11,0.0003315,2]
[310196671,1704397853892,-938.31,0.0003315,2]
[310196672,1704397853903,-508.60004183,0.0003315,2]
[310196673,1704397853912,-515.67622017,0.0003315,2]
[310196674,1704397853923,-539.64064004,0.0003315,2]
[310196675,1704397853933,-600.84,0.0003315,2]
[310196676,1704397853942,-500.0,0.0003315,2]
[310196677,1704397853951,-599.8282205,0.0003315,2]
[310196678,1704397853961,-500.0,0.0003315,2]
[310196679,1704397853970,-500.0,0.0003315,2]
[310196680,1704397853980,-500.0,0.0003315,2]
[310196681,1704397853989,-1230.77,0.0003315,2]
[310196682,1704397853999,-500.0,0.0003315,2]
[310196683,1704397854010,-500.0,0.0003315,2]
[310196684,1704397854021,-500.0,0.0003315,2]
[310196685,1704397854032,-500.0,0.0003315,2]
[310196686,1704397854041,-536.69517789,0.0003315,2]
[310196687,1704397854052,-514.29,0.0003315,2]
[310196688,1704397854061,-529.04,0.0003315,2]
[310196689,1704397854071,-500.0,0.0003315,2]
[310196690,1704397854082,-923.67,0.0003315,2]
[310196691,1704397854091,-500.0,0.0003315,2]
[310196692,1704397854100,-500.0,0.0003315,2]
[310196693,1704397854110,-500.0,0.0003315,2]
[310196694,1704397854123,-1091.29,0.0003315,2]
[310196695,1704397854133,-152.62220833,0.0003315,2]
[310196696,1704397854142,-500.0,0.0003315,2]
[310196697,1704397854152,-500.0,0.0003315,2]
[310196698,1704397854162,-500.0,0.0003315,2]
[310196699,1704397854172,-500.0,0.0003315,2]
[310196700,1704397854182,-500.0,0.0003315,2]
[310196701,1704397854191,-500.0,0.0003315,2]
[310196702,1704397854200,-500.0,0.0003315,2]
[310196703,1704397854210,-500.0,0.0003315,2]
[310196704,1704397854219,-989.1,0.0003315,2]
[310196705,1704397854228,-500.0,0.0003315,2]
[310196706,1704397854238,-500.0,0.0003315,2]
[310196707,1704397854247,-602.25,0.0003315,2]
[310196708,1704397854257,-500.0,0.0003315,2]
[310196709,1704397854266,-500.0,0.0003315,2]
[310196710,1704397854276,-3309.5,0.0003315,2]
[310196711,1704397854285,-500.0,0.0003315,2]
[310196712,1704397854294,-500.0,0.0003315,2]
[310196713,1704397854306,-522.25595397,0.0003315,2]
[310196714,1704397854315,-532.96,0.0003315,2]
[310196715,1704397854325,-500.0,0.0003315,2]
[310196716,1704397854334,-500.0,0.0003315,2]
[310196717,1704397854343,-500.0,0.0003315,2]
[310196718,1704397854353,-533.02404867,0.0003315,2]
[310196719,1704397854363,-500.0,0.0003315,2]
[310196720,1704397854372,-500.0,0.0003315,2]
[310196721,1704397854382,-500.0,0.0003315,2]
[310196722,1704397854392,-500.0,0.0003315,2]
[310196723,1704397854402,-500.0,0.0003315,2]
[310196724,1704397854412,-895.61,0.0003315,2]
[310196725,1704397854423,-765.49,0.0003315,2]
[310196726,1704397854432,-500.0,0.0003315,2]
[310196727,1704397854442,-923.89,0.0003315,2]
[310196728,1704397854451,-521.59573881,0.0003315,2]
[310196729,1704397854461,-500.0,0.0003315,2]
[310196730,1704397854470,-500.0,0.0003315,2]
[310196731,1704397854481,-500.0,0.0003315,2]
[310196732,1704397854490,-500.0,0.0003315,2]
[310196733,1704397854500,-500.0,0.0003315,2]
[310196734,1704397854509,-500.0,0.0003315,2]
[310196735,1704397854519,-500.0,0.0003315,2]
[310196736,1704397854528,-500.0,0.0003315,2]
[310196737,1704397854538,-500.0,0.0003315,2]
[310196738,1704397854548,-500.0,0.0003315,2]
[310196739,1704397854558,-500.0,0.0003315,2]
[310196740,1704397854567,-500.0,0.0003315,2]
[310196741,1704397854577,-587.04,0.0003315,2]
[310196742,1704397854587,-1030.36,0.0003315,2]
[310196743,1704397854597,-500.0,0.0003315,2]
[310196744,1704397854607,-500.0,0.0003315,2]
[310196745,1704397854616,-500.0,0.0003315,2]
[310196746,1704397854626,-500.0,0.0003315,2]
[310196747,1704397854637,-627.71,0.0003315,2]
[310196748,1704397854647,-500.0,0.0003315,2]
[310196749,1704397854660,-500.0,0.0003315,2]
[310196750,1704397854672,-500.0,0.0003315,2]
[310196751,1704397854683,-4224.76,0.0003315,2]
[310196752,1704397854692,-500.0,0.0003315,2]
[310196753,1704397854701,-789.2,0.0003315,2]
[310196754,1704397854710,-500.0,0.0003315,2]
[310196755,1704397854719,-500.0,0.0003315,2]
[310196756,1704397854728,-500.0,0.0003315,2]
[310196757,1704397854737,-500.0,0.0003315,2]
[310196758,1704397854747,-5231.08,0.0003315,2]
[310196759,1704397854756,-500.0,0.0003315,2]
[310196760,1704397854766,-500.0,0.0003315,2]
[310196761,1704397854775,-500.0,0.0003315,2]
[310196762,1704397854784,-500.0,0.0003315,2]
[310196763,1704397854794,-1469.18,0.0003315,2]
[310196764,1704397854803,-500.0,0.0003315,2]
[310196765,1704397854812,-500.0,0.0003315,2]
[310196766,1704397854822,-500.0,0.0003315,2]
[310196767,1704397854831,-500.0,0.0003315,2]
[310196768,1704397854841,-807.05,0.0003315,2]
[310196769,1704397854850,-500.0,0.0003315,2]
[310196770,1704397854860,-500.0,0.0003315,2]
[310196771,1704397854869,-500.0,0.0003315,2]
[310196772,1704397854878,-623.70370561,0.0003315,2]
[310196773,1704397854888,-637.19,0.0003315,2]
[310196774,1704397854897,-573.15185622,0.0003315,2]
[310196775,1704397854906,-500.0,0.0003315,2]
[310196776,1704397854916,-500.0,0.0003315,2]
[310196777,1704397854925,-500.0,0.0003315,2]
[310196778,1704397854934,-565.04,0.0003315,2]
[310196779,1704397854944,-500.0,0.0003315,2]
[310196780,1704397854953,-500.0,0.0003315,2]
[310196781,1704397854963,-853.71,0.0003315,2]
[310196782,1704397854972,-500.0,0.0003315,2]
[310196783,1704397854981,-572.16,0.0003315,2]
[310196784,1704397854990,-500.0,0.0003315,2]
[310196785,1704397855000,-500.0,0.0003315,2]
[310196786,1704397855010,-520.25833429,0.0003315,2]
[310196787,1704397855019,-1481.18,0.0003315,2]
[310196788,1704397855029,-500.0,0.0003315,2]
[310196789,1704397855039,-1368.13,0.0003315,2]
[310196790,1704397855049,-500.0,0.0003315,2]
[310196791,1704397855059,-561.22,0.0003315,2]
[310196792,1704397855069,-500.0,0.0003315,2]
[310196793,1704397855079,-500.0,0.0003315,2]
[310196794,1704397855089,-500.0,0.0003315,2]
[310196795,1704397855098,-500.0,0.0003315,2]
[310196796,1704397855108,-500.0,0.0003315,2]
[310196797,1704397855118,-1034.34,0.0003315,2]
[310196798,1704397855131,-2410.15,0.0003315,2]
[310196799,1704397855140,-500.0,0.0003315,2]
[310196800,1704397855150,-500.0,0.0003315,2]
[310196801,1704397855162,-408.18674771,0.0003315,2]
[310196802,1704397855173,-500.0,0.0003315,2]
[310196803,1704397855182,-500.0,0.0003315,2]
[310196804,1704397855191,-500.0,0.0003315,2]
[310196805,1704397855201,-500.0,0.0003315,2]
[310196806,1704397855211,-990.03,0.0003315,2]
[310196807,1704397855221,-500.0,0.0003315,2]
[310196808,1704397855230,-500.0,0.0003315,2]
[310196809,1704397855240,-500.0,0.0003315,2]
[310196810,1704397855249,-506.32760378,0.0003315,2]
[310196811,1704397855258,-500.0,0.0003315,2]
[310196812,1704397855268,-500.0,0.0003315,2]
[310196813,1704397855277,-500.0,0.0003315,2]
[310196814,1704397855286,-500.0,0.0003315,2]
[310196815,1704397855295,-600.41,0.0003315,2]
[310196816,1704397855305,-500.0,0.0003315,2]
[310196817,1704397855314,-500.0,0.0003315,2]
[310196818,1704397855322,-500.0,0.0003315,2]
[310196819,1704397855331,-500.0,0.0003315,2]
[310196820,1704397855340,-500.0,0.0003315,2]
[310196821,1704397855349,-773.88,0.0003315,2]
[310196822,1704397855364,-500.0,0.0003315,2]
[310196823,1704397855379,-521.15104917,0.0003315,2]
[310196824,1704397855393,-500.0,0.0003315,2]
[310196825,1704397855406,-500.0,0.0003315,2]
[310196826,1704397855418,-500.0,0.0003315,2]
[310196827,1704397855431,-500.0,0.0003315,2]
[310196828,1704397855444,-500.0,0.0003315,2]
[310196829,1704397855458,-876.65,0.0003315,2]
[310196830,1704397855471,-500.0,0.0003315,2]
[310196831,1704397855485,-1745.78,0.0003315,2]
[310196832,1704397855498,-529.83,0.0003315,2]
[310196833,1704397855509,-1330.86,0.0003315,2]
[310196834,1704397855523,-204.04937894,0.0003315,2]
[310196835,1704397855535,-3939.72,0.0003315,2]
[310196836,1704397855548,-500.0,0.0003315,2]
[310196837,1704397855562,-500.0,0.0003315,2]
[310196838,1704397855575,-500.0,0.0003315,2]
[310196839,1704397855588,-500.0,0.0003315,2]
[310196840,1704397855599,-750.41,0.0003315,2]
[310196841,1704397855612,-506.48928726,0.0003315,2]
[310196842,1704397855627,-500.0,0.0003315,2]
[310196843,1704397855640,-1000.0,0.0003315,2]
[310196844,1704397855654,-1262.44,0.0003315,2]
[310196845,1704397855667,-500.0,0.0003315,2]
[310196846,1704397855679,-500.0,0.0003315,2]
[310196847,1704397855692,-872.52,0.0003315,2]
[310196848,1704397855704,-805.05,0.0003315,2]
[310196849,1704397855716,-500.0,0.0003315,2]
[310196850,1704397855731,-500.0,0.0003315,2]
[310196851,1704397855744,-500.0,0.0003315,2]
[310196852,1704397855758,-978.86,0.0003315,2]
[310196853,1704397855770,-500.0,0.0003315,2]
[310196854,1704397855781,-500.0,0.0003315,2]
[310196855,1704397855791,-500.0,0.0003315,2]
[310196856,1704397855802,-500.0,0.0003315,2]
[310196857,1704397855814,-500.0,0.0003315,2]
[310196858,1704397855827,-500.0,0.0003315,2]
[310196859,1704397855839,-500.0,0.0003315,2]
[310196860,1704397855853,-1031.78,0.0003315,2]
[310196861,1704397855864,-500.0,0.0003315,2]
[310196862,1704397855875,-500.0,0.0003315,2]
[310196863,1704397855887,-500.0,0.0003315,2]
[310196864,1704397855899,-500.0,0.0003315,2]
[310196865,1704397855911,-500.0,0.0003315,2]
[310196866,1704397855924,-500.0,0.0003315,2]
[310196867,1704397855937,-500.0,0.0003315,2]
[310196868,1704397855950,-500.0,0.0003315,2]
[310196869,1704397855963,-500.0,0.0003315,2]
[310196870,1704397855977,-362.5,0.0003315,2]
[310196871,1704397855988,-500.0,0.0003315,2]
[310196872,1704397856001,-1359.87,0.0003315,2]
[310196873,1704397856013,-500.0,0.0003315,2]
[310196874,1704397856026,-500.0,0.0003315,2]
[310196875,1704397856037,-598.11,0.0003315,2]
[310196876,1704397856048,-500.0,0.0003315,2]
[310196877,1704397856059,-500.0,0.0003315,2]
[310196878,1704397856070,-500.0,0.0003315,2]
[310196879,1704397856082,-500.0,0.0003315,2]
[310196880,1704397856096,-500.0,0.0003315,2]
[310196881,1704397856107,-500.0,0.0003315,2]
[310196882,1704397856119,-637.82,0.0003315,2]
[310196883,1704397856130,-500.0,0.0003315,2]
[310196884,1704397856143,-1353.52,0.0003315,2]
[310196885,1704397856155,-500.0,0.0003315,2]
[310196886,1704397856166,-974.78,0.0003315,2]
[310196887,1704397856177,-500.0,0.0003315,2]
[310196888,1704397856189,-500.0,0.0003315,2]
[310196889,1704397856200,-1044.66,0.0003315,2]
[310196890,1704397856212,-500.0,0.0003315,2]
[310196891,1704397856223,-517.70517821,0.0003315,2]
[310196892,1704397856236,-500.0,0.0003315,2]
[310196893,1704397856247,-500.0,0.0003315,2]
[310196894,1704397856260,-500.0,0.0003315,2]
[310196895,1704397856271,-500.0,0.0003315,2]
[310196896,1704397856282,-500.0,0.0003315,2]
[310196897,1704397856294,-500.0,0.0003315,2]
[310196898,1704397856307,-500.0,0.0003315,2]
[310196899,1704397856319,-500.0,0.0003315,2]
[310196900,1704397856330,-2163.78,0.0003315,2]
[310196901,1704397856342,-500.0,0.0003315,2]
[310196902,1704397856356,-613.04,0.0003315,2]
[310196903,1704397856369,-500.0,0.0003315,2]
[310196904,1704397856380,-500.0,0.0003315,2]
[310196905,1704397856396,-500.0,0.0003315,2]
[310196906,1704397856408,-500.0,0.0003315,2]
[310196907,1704397856418,-500.0,0.0003315,2]
[310196908,1704397856430,-622.8,0.0003315,2]
[310196909,1704397856441,-500.0,0.0003315,2]
[310196910,1704397856451,-1854.45,0.0003315,2]
[310196911,1704397856463,-500.0,0.0003315,2]
[310196912,1704397856474,-1453.91,0.0003315,2]
[310196913,1704397856485,-610.32,0.0003315,2]
[310196914,1704397856496,-500.0,0.0003315,2]
[310196915,1704397856508,-211.18038521,0.0003315,2]
[310196916,1704397856519,-500.0,0.0003315,2]
[310196917,1704397856530,-500.0,0.0003315,2]
[310196918,1704397856541,-500.0,0.0003315,2]
[310196919,1704397856552,-500.0,0.0003315,2]
[310196920,1704397856563,-500.0,0.0003315,2]
[310196921,1704397856574,-160.0,0.0003315,2]
[310196922,1704397856585,-500.0,0.0003315,2]
[310196923,1704397856596,-500.0,0.0003315,2]
[310196924,1704397856608,-500.0,0.0003315,2]
[310196925,1704397856619,-500.0,0.0003315,2]
[310196926,1704397856630,-524.82,0.0003315,2]
[310196927,1704397856642,-2024.49,0.0003315,2]
[310196928,1704397856654,-500.0,0.0003315,2]
[310196929,1704397856664,-500.0,0.0003315,2]
[310196930,1704397856676,-500.0,0.0003315,2]
[310196931,1704397856687,-853.3,0.0003315,2]
[310196932,1704397856698,-500.0,0.0003315,2]
[310196933,1704397856710,-582.4720838,0.0003315,2]
[310196934,1704397856723,-500.0,0.0003315,2]
[310196935,1704397856735,-187.39286378,0.00033182,2]
[310196936,1704397856748,-177.02,0.00033192,2]
[310196937,1704397856759,-155.39,0.00033202,2]
[310196938,1704397856769,-1820.04691551,0.00033262,5]
[310196939,1704397856781,-162.77,0.00033283,2]
[310196940,1704397856792,-150.0,0.000333,2]
[310196941,1704397856803,-188.44,0.00033319,2]
[310196942,1704397856816,-177.02,0.00033352,2]
[310196943,1704397856828,-186.06834236,0.00033384,7]
[310196944,1704397856840,-151.67305446,0.00033384,7]
[310196945,1704397856853,-155.39,0.00033396,2]
[310196946,1704397856865,-598.17,0.00033423,2]
[310196947,1704397856876,-500.79164173,0.00033424,2]
[310196948,1704397856887,-503.0,0.00033424,2]
[310196949,1704397856898,-505.07905367,0.00033424,2]
[310196950,1704397856911,-271.36252532,0.00033424,2]
[310196951,1704397856924,-500.0,0.00033424,2]
[310196952,1704397856935,-179.51962401,0.00033424,2]
[310196953,1704397856947,-500.0,0.00033424,2]
[310196954,1704397856958,-500.0,0.00033424,2]
[310196955,1704397856972,-510.70322912,0.00033424,2]
[310196956,1704397856984,-537.81022926,0.00033424,2]
[310196957,1704397856995,-318.96567905,0.00033424,2]
[310196958,1704397857006,-500.0,0.00033424,2]
[310196959,1704397857017,-500.0,0.00033424,2]
[310196960,1704397857029,-500.0,0.00033424,2]
[310196961,1704397857040,-333.60374825,0.00033424,2]
[310196962,1704397857052,-531.01429606,0.00033424,2]